fUST/lending_fUST_20250422
["ID","MTS","AMOUNT","RATE_DAILY","PERIOD"]
[358594102,1745297443500,-505.22777082,0.00023409,2]
[358594103,1745297443509,-4531.47,0.00023409,2]
[358594104,1745297443519,-500.0,0.00023409,2]
[358594105,1745297443529,-500.0,0.00023409,2]
[358594106,1745297443537,-500.0,0.0002341,2]
[358594107,1745297443547,-500.0,0.0002341,2]
[358594108,1745297443556,-5707.66,0.0002341,2]
[358594109,1745297443565,-500.0,0.0002341,2]
[358594110,1745297443574,-500.0,0.0002341,2]
[358594111,1745297443583,-8031.22,0.0002341,2]
[358594112,1745297443592,-500.0,0.00023413,2]
[358594113,1745297443602,-665.5,0.00023413,2]
[358594114,1745297443612,-500.0,0.00023413,2]
[358594115,1745297443621,-365.03101003,0.00023413,2]
[358594116,1745297443630,-507.72796452,0.00023413,2]
[358594117,1745297443640,-500.0,0.00023413,2]
[358594118,1745297443649,-520.09277832,0.00023413,2]
[358594119,1745297443658,-500.0,0.00023413,2]
[358594120,1745297443667,-500.0,0.00023413,2]
[358594121,1745297443677,-500.0,0.00023413,2]
[358594122,1745297443687,-604.09367698,0.00023413,2]
[358594123,1745297443697,-500.0,0.00023413,2]
[358594124,1745297443710,-649.86324214,0.00023413,2]
[358594125,1745297443720,-589.84,0.00023413,2]
[358594126,1745297443730,-510.25232994,0.00023413,2]
[358594127,1745297443739,-500.0,0.00023413,2]
[358594128,1745297443750,-500.0,0.00023413,2]
[358594129,1745297443760,-500.0,0.00023413,2]
[358594130,1745297443770,-500.0,0.00023413,2]
[358594131,1745297443780,-500.0,0.00023413,2]
[358594132,1745297443790,-500.0,0.00023413,2]
[358594133,1745297443799,-896.95,0.00023413,2]
[358594134,1745297443809,-333.76661461,0.00023413,2]
[358594135,1745297443818,-628.93,0.00023413,2]
[358594136,1745297443828,-500.0,0.00023413,2]
[358594137,1745297443838,-151.0,0.00023413,7]
[358594138,1745297443848,-500.0,0.00023413,2]
[358594139,1745297443858,-500.0,0.00023413,2]
[358594140,1745297443868,-500.0,0.00023413,2]
[358594141,1745297443877,-500.0,0.00023413,2]
[358594142,1745297443890,-500.0,0.00023413,2]
[358594143,1745297443900,-151.0,0.00023413,7]
[358594144,1745297443909,-500.0,0.00023413,2]
[358594145,1745297443919,-500.0,0.00023413,2]
[358594146,1745297443930,-1000.0,0.00023413,2]
[358594147,1745297443939,-500.0,0.00023413,2]
[358594148,1745297443949,-500.0,0.00023413,2]
[358594149,1745297443958,-500.0,0.00023413,2]
[358594150,1745297443968,-500.0,0.00023413,2]
[358594151,1745297443977,-303.02674512,0.00023413,2]
[358594152,1745297443986,-500.0,0.00023413,2]
[358594153,1745297443996,-830.76,0.00023413,2]
[358594154,1745297444006,-500.0,0.00023413,2]
[358594155,1745297444014,-500.0,0.00023413,2]
[358594156,1745297444023,-1405.24,0.00023413,2]
[358594157,1745297444033,-509.14514543,0.00023413,2]
[358594158,1745297444042,-500.0,0.00023413,2]
[358594159,1745297444051,-514.71,0.00023413,2]
[358594160,1745297444061,-500.0,0.00023413,2]
[358594161,1745297444071,-500.0,0.00023413,2]
[358594162,1745297444080,-500.0,0.00023413,2]
[358594163,1745297444089,-500.0,0.00023413,2]
[358594164,1745297444098,-630.73,0.00023413,2]
[358594165,1745297444107,-500.0,0.00023413,2]
[358594166,1745297444116,-151.0,0.00023413,7]
[358594167,1745297444125,-500.0,0.00023413,2]
[358594168,1745297444135,-500.0,0.00023413,2]
[358594169,1745297444144,-500.0,0.00023413,2]
[358594170,1745297444154,-151.0,0.00023413,7]
[358594171,1745297444219,-500.0,0.00023413,2]
[358594172,1745297444230,-184.23695828,0.00023413,2]
[358594173,1745297444239,-500.0,0.00023413,2]
[358594174,1745297444248,-500.0,0.00023413,2]
[358594175,1745297444257,-1109.86,0.00023413,2]
[358594176,1745297444267,-500.0,0.00023413,2]
[358594177,1745297444276,-500.0,0.00023413,2]
[358594178,1745297444286,-500.0,0.00023413,2]
[358594179,1745297444295,-500.0,0.00023413,2]
[358594180,1745297444304,-500.0,0.00023413,2]
[358594181,1745297444314,-500.0,0.00023413,2]
[358594182,1745297444323,-500.0,0.00023413,2]
[358594183,1745297444332,-500.0,0.00023413,2]
[358594184,1745297444341,-475.756591,0.00023413,7]
[358594185,1745297444351,-500.0,0.00023413,2]
[358594186,1745297444360,-500.0,0.00023413,2]
[358594187,1745297444369,-475.756591,0.00023413,7]
[358594188,1745297444379,-187.33258447,0.00023413,2]
[358594189,1745297444684,-325.06593489,0.00023413,2]
[358594190,1745297444700,-500.0,0.00023413,2]
[358594191,1745297444717,-500.0,0.00023413,2]
[358594192,1745297444732,-258.5904409,0.00023413,2]
[358594193,1745297444751,-241.4095591,0.00023413,2]
[358594194,1745297444766,-269.539494,0.00023413,7]
[358594195,1745297444780,-439.88074534,0.00023413,2]
[358594196,1745297444797,-60.11925466,0.00023413,2]
[358594197,1745297444812,-503.84617787,0.00023413,2]
[358594198,1745297444826,-269.539494,0.00023413,7]
[358594199,1745297444840,-292.79269989,0.00023413,2]
[358594200,1745297444857,-207.20730011,0.00023413,2]
[358594201,1745297444871,-292.79269989,0.00023413,2]
[358594202,1745297444961,-207.20730011,0.00023413,2]
[358594203,1745297444975,-123.79269989,0.00023413,2]
[358594204,1745297444992,-376.20730011,0.00023413,2]
[358594205,1745297445006,-509.09503766,0.00023413,2]
[358594206,1745297445021,-128.68126223,0.00023413,2]
[358594207,1745297445373,-371.31873777,0.00023413,2]
[358594208,1745297445383,-173.92835149,0.00023413,2]
[358594209,1745297445395,-326.07164851,0.00023413,2]
[358594210,1745297445404,-500.0,0.00023413,2]
[358594211,1745297445413,-167.17425587,0.00023413,2]
[358594212,1745297445425,-332.82574413,0.00023413,2]
[358594213,1745297445434,-500.0,0.00023413,2]
[358594214,1745297445444,-500.0,0.00023413,2]
[358594215,1745297445453,-500.0,0.00023419,2]
[358594216,1745297445463,-500.0,0.00023419,2]
[358594217,1745297445473,-500.0,0.00023419,2]
[358594218,1745297445483,-500.0,0.00023419,2]
[358594219,1745297445492,-500.0,0.00023419,2]
[358594220,1745297445502,-500.0,0.00023419,2]
[358594221,1745297445511,-475.52790393,0.00023419,2]
[358594222,1745297445521,-521.56140219,0.00023419,2]
[358594223,1745297445531,-500.0,0.00023419,2]
[358594224,1745297445541,-500.0,0.00023419,2]
[358594225,1745297445550,-500.0,0.00023419,2]
[358594226,1745297445560,-500.0,0.00023419,2]
[358594227,1745297445569,-500.0,0.00023419,2]
[358594228,1745297445579,-500.0,0.00023419,2]
[358594229,1745297445588,-500.0,0.00023419,2]
[358594230,1745297445597,-500.0,0.00023419,2]
[358594231,1745297445607,-500.0,0.00023419,2]
[358594232,1745297445616,-500.0,0.00023419,2]
[358594233,1745297445626,-500.0,0.00023419,2]
[358594234,1745297445635,-500.0,0.00023419,2]
[358594235,1745297445644,-500.0,0.00023419,2]
[358594236,1745297445655,-500.0,0.00023419,2]
[358594237,1745297445665,-500.0,0.00023419,2]
[358594238,1745297445674,-842.32,0.00023419,2]
[358594239,1745297445684,-1509.58,0.00023419,2]
[358594240,1745297445693,-500.0,0.00023419,2]
[358594241,1745297445706,-500.0,0.00023419,2]
[358594242,1745297445716,-505.6475662,0.00023419,2]
[358594243,1745297445726,-500.0,0.00023419,2]
[358594244,1745297445735,-500.0,0.00023419,2]
[358594245,1745297445746,-500.0,0.00023419,2]
[358594246,1745297445756,-500.0,0.00023419,2]
[358594247,1745297445765,-500.0,0.00023419,2]
[358594248,1745297445776,-500.0,0.00023419,2]
[358594249,1745297445787,-500.0,0.00023419,2]
[358594250,1745297445796,-500.0,0.00023419,2]
[358594251,1745297445806,-500.0,0.00023419,2]
[358594252,1745297445816,-515.90749648,0.00023419,2]
[358594253,1745297445826,-500.0,0.00023419,2]
[358594254,1745297445835,-500.0,0.00023419,2]
[358594255,1745297445845,-500.0,0.00023419,2]
[358594256,1745297445854,-500.0,0.00023419,2]
[358594257,1745297445864,-500.0,0.00023419,2]
[358594258,1745297445873,-46.64707526,0.00023419,2]
[358594259,1745297445886,-457.9239234,0.00023419,2]
[358594260,1745297445896,-1776.26,0.00023419,2]
[358594261,1745297445907,-500.0,0.00023419,2]
[358594262,1745297445916,-500.0,0.00023419,2]
[358594263,1745297445926,-1315.81606685,0.00023419,2]
[358594264,1745297445938,-3054.06922988,0.00023419,2]
[358594265,1745297445949,-1267.50470327,0.00023419,2]
[358594266,1745297445959,-500.0,0.00023419,2]
[358594267,1745297445969,-500.0,0.00023419,2]
[358594268,1745297445978,-500.0,0.00023436,2]
[358594269,1745297445988,-187.28680992,0.00023436,2]
[358594270,1745297446000,-312.71319008,0.00023436,2]
[358594271,1745297446009,-238.02454183,0.00023437,2]
[358594273,1745297446375,-291.36545817,0.00023437,2]
[358594274,1745297446385,-500.0,0.00023437,2]
[358594275,1745297446393,-500.0,0.0002344,2]
[358594276,1745297446402,-500.0,0.0002344,2]
[358594277,1745297446412,-500.0,0.0002344,2]
[358594278,1745297446421,-500.0,0.0002344,2]
[358594279,1745297446431,-500.0,0.0002344,2]
[358594280,1745297446441,-298.34680829,0.00023587,2]
[358594281,1745297446450,-300.0,0.00023662,2]
[358594282,1745297446460,-500.0,0.00023662,2]
[358594283,1745297446470,-500.0,0.00023662,2]
[358594284,1745297446480,-500.0,0.00023662,2]
[358594285,1745297446490,-500.0,0.00023662,2]
[358594286,1745297446500,-500.0,0.00023662,2]
[358594287,1745297446509,-500.0,0.00023662,2]
[358594288,1745297446519,-500.0,0.00023662,2]
[358594289,1745297446529,-500.0,0.00023662,2]
[358594290,1745297446538,-500.0,0.00023662,2]
[358594291,1745297446548,-500.0,0.00023666,2]
[358594292,1745297446558,-500.0,0.00023683,2]
[358594293,1745297446567,-500.0,0.00023683,2]
[358594294,1745297446577,-500.0,0.00023683,2]
[358594295,1745297446587,-500.0,0.00023683,2]
[358594296,1745297446597,-1128.74,0.00023683,2]
[358594297,1745297446607,-500.0,0.00023683,2]
[358594298,1745297446617,-4531.47,0.00023683,2]
[358594299,1745297446627,-230.93764274,0.00023683,2]
[358594300,1745297446636,-500.0,0.00023683,2]
[358594301,1745297446646,-500.0,0.00023684,2]
[358594302,1745297446655,-500.0,0.00023684,2]
[358594303,1745297446664,-4600.3313686,0.00023684,2]
[358594304,1745297446676,-595.71000005,0.00023684,2]
[358594305,1745297446687,-511.61863135,0.00023684,2]
[358594306,1745297446697,-500.0,0.00023684,2]
[358594307,1745297446710,-500.0,0.00023684,2]
[358594308,1745297446720,-4210.58564785,0.00023684,2]
[358594376,1745298192947,-3111.37377666,0.00020064,2]
[358594377,1745298192973,-493.3028359,0.00021313,2]
[358594378,1745298192997,-300.0,0.00021821,2]
[358594379,1745298193019,-6423.32338744,0.00021822,2]
[358594395,1745298352266,328.86855726,0.00019722,2]
[358594446,1745298632574,-1837.0057757,0.00020661,2]
[358594447,1745298632584,-1200.0,0.00020868,2]
[358594448,1745298632594,-7779.8722282,0.00020869,2]
[358594449,1745298632604,-300.0,0.0002172,2]
[358594450,1745298632614,-1000.0,0.00021721,2]
[358594451,1745298632624,-250.0,0.00021721,2]
[358594452,1745298632634,-5000.0,0.000218,2]
[358594453,1745298632644,-184.45811037,0.00021816,2]
[358594454,1745298632654,-35551.21995786,0.00021822,2]
[358594455,1745298632664,-9124.27705071,0.00021916,2]
[358594456,1745298632673,-500.0,0.00021916,2]
[358594457,1745298632684,-500.0,0.00021916,2]
[358594458,1745298632694,-500.0,0.00021916,2]
[358594459,1745298632705,-500.0,0.00021916,2]
[358594460,1745298632714,-500.0,0.00021916,2]
[358594461,1745298632724,-500.0,0.00021916,2]
[358594462,1745298632735,-500.0,0.00021916,2]
[358594463,1745298632746,-500.0,0.00021916,2]
[358594464,1745298632756,-500.0,0.00021916,2]
[358594465,1745298632766,-500.0,0.00021916,2]
[358594466,1745298632776,-500.0,0.00021916,2]
[358594467,1745298632786,-224.11378768,0.00021916,2]
[358594468,1745298632796,-500.0,0.00021916,2]
[358594469,1745298632805,-500.0,0.00021916,2]
[358594470,1745298632816,-500.0,0.00021916,2]
[358594471,1745298632827,-896.95,0.00021917,2]
[358594472,1745298632837,-500.0,0.00021917,2]
[358594473,1745298632847,-628.93,0.00021917,2]
[358594474,1745298632857,-500.0,0.00021917,2]
[358594475,1745298632867,-500.0,0.00021917,2]
[358594476,1745298632876,-500.0,0.00021917,2]
[358594477,1745298632886,-500.0,0.00021917,2]
[358594478,1745298632896,-500.0,0.00021917,2]
[358594479,1745298632906,-500.0,0.00021917,2]
[358594480,1745298632915,-830.76,0.00021917,2]
[358594481,1745298632927,-500.0,0.00021917,2]
[358594482,1745298632936,-500.0,0.00021917,2]
[358594483,1745298632945,-1405.24,0.00021917,2]
[358594484,1745298632955,-500.0,0.00021917,2]
[358594485,1745298632966,-514.71,0.00021917,2]
[358594486,1745298632976,-500.0,0.00021917,2]
[358594487,1745298632985,-500.0,0.00021917,2]
[358594488,1745298632995,-500.0,0.00021917,2]
[358594489,1745298633005,-500.0,0.00021917,2]
[358594490,1745298633014,-500.0,0.00021917,2]
[358594491,1745298633024,-1109.86,0.00021917,2]
[358594492,1745298633034,-552.97883927,0.00021917,2]
[358594493,1745298633043,-500.0,0.00021917,2]
[358594494,1745298633056,-500.0,0.00021917,2]
[358594495,1745298633165,-500.0,0.00021917,2]
[358594496,1745298633176,-1034.68,0.00021917,2]
[358594497,1745298633186,-500.0,0.00021917,2]
[358594498,1745298633196,-500.0,0.00021917,2]
[358594499,1745298633206,-5798.15,0.00021917,2]
[358594500,1745298633216,-5798.15,0.00021917,2]
[358594501,1745298633226,-500.0,0.00021917,2]
[358594502,1745298633236,-500.0,0.00021917,2]
[358594503,1745298633246,-500.0,0.00021917,2]
[358594504,1745298633255,-500.0,0.00021917,2]
[358594505,1745298633265,-507.35394422,0.00021917,2]
[358594506,1745298633274,-500.0,0.00021917,2]
[358594507,1745298633283,-500.0,0.00021917,2]
[358594508,1745298633293,-5232.03,0.00021917,2]
[358594509,1745298633302,-500.0,0.00021917,2]
[358594510,1745298633312,-4153.84,0.00021917,2]
[358594511,1745298633321,-500.0,0.00021917,2]
[358594512,1745298633331,-500.0,0.00021917,2]
[358594513,1745298633340,-500.0,0.00021917,2]
[358594514,1745298633349,-354.72879113,0.00021917,2]
[358594515,1745298633359,-500.0,0.00021917,2]
[358594516,1745298633368,-500.0,0.00021917,2]
[358594517,1745298633378,-500.0,0.00021917,2]
[358594518,1745298633387,-500.0,0.00021917,2]
[358594519,1745298633396,-500.0,0.00021917,2]
[358594520,1745298633406,-500.0,0.00021917,2]
[358594521,1745298633415,-500.0,0.00021917,2]
[358594522,1745298633425,-500.0,0.00021917,2]
[358594523,1745298633435,-7521.15,0.00021917,2]
[358594524,1745298633444,-500.0,0.00021917,2]
[358594525,1745298633454,-194.26174,0.00021918,2]
[358594526,1745298633463,-896.95,0.00022191,2]
[358594527,1745298633473,-500.0,0.00022191,2]
[358594528,1745298633483,-628.93,0.00022191,2]
[358594529,1745298633492,-500.0,0.00022191,2]
[358594530,1745298633502,-500.0,0.00022191,2]
[358594531,1745298633511,-500.0,0.00022191,2]
[358594532,1745298633521,-500.0,0.00022191,2]
[358594533,1745298633531,-500.0,0.00022191,2]
[358594534,1745298633541,-500.0,0.00022191,2]
[358594535,1745298633550,-830.76,0.00022191,2]
[358594536,1745298633560,-500.0,0.00022191,2]
[358594537,1745298633569,-500.0,0.00022191,2]
[358594538,1745298633578,-1405.24,0.00022191,2]
[358594539,1745298633588,-500.0,0.00022191,2]
[358594540,1745298633598,-514.71,0.00022191,2]
[358594541,1745298633608,-500.0,0.00022191,2]
[358594542,1745298633617,-500.0,0.00022191,2]
[358594543,1745298633626,-500.0,0.00022191,2]
[358594544,1745298633636,-500.0,0.00022191,2]
[358594545,1745298633645,-500.0,0.00022191,2]
[358594546,1745298633655,-1109.86,0.00022191,2]
[358594547,1745298633664,-500.0,0.00022191,2]
[358594548,1745298633674,-500.0,0.00022191,2]
[358594549,1745298633683,-500.0,0.00022191,2]
[358594550,1745298633692,-1034.68,0.00022191,2]
[358594551,1745298633702,-500.0,0.00022191,2]
[358594552,1745298633711,-500.0,0.00022191,2]
[358594553,1745298633721,-500.0,0.00022191,2]
[358594554,1745298633730,-500.0,0.00022191,2]
[358594555,1745298633739,-500.0,0.00022191,2]
[358594556,1745298633749,-500.0,0.00022191,2]
[358594557,1745298633761,-500.0,0.00022191,2]
[358594558,1745298633770,-500.0,0.00022191,2]
[358594559,1745298633780,-5232.03,0.00022191,2]
[358594560,1745298633790,-500.0,0.00022191,2]
[358594561,1745298633799,-4153.84,0.00022191,2]
[358594562,1745298633809,-500.0,0.00022191,2]
[358594563,1745298633818,-500.0,0.00022191,2]
[358594564,1745298633828,-500.0,0.00022191,2]
[358594565,1745298633837,-500.0,0.00022191,2]
[358594566,1745298633847,-500.0,0.00022191,2]
[358594567,1745298633856,-502.27402556,0.00022191,2]
[358594568,1745298633866,-500.0,0.00022191,2]
[358594569,1745298633875,-500.0,0.00022191,2]
[358594570,1745298633886,-500.0,0.00022191,2]
[358594571,1745298633895,-500.0,0.00022191,2]
[358594572,1745298633905,-500.0,0.00022191,2]
[358594573,1745298633915,-7521.15,0.00022191,2]
[358594574,1745298633924,-184.45811037,0.00022228,2]
[358594575,1745298633934,-500.0,0.00022465,2]
[358594576,1745298633944,-896.95,0.00022465,2]
[358594577,1745298633954,-628.93,0.00022465,2]
[358594578,1745298633964,-500.0,0.00022465,2]
[358594579,1745298633974,-500.0,0.00022465,2]
[358594580,1745298633984,-500.0,0.00022465,2]
[358594581,1745298633993,-500.0,0.00022465,2]
[358594582,1745298634003,-500.0,0.00022465,2]
[358594583,1745298634012,-500.0,0.00022465,2]
[358594584,1745298634022,-830.76,0.00022465,2]
[358594585,1745298634031,-500.0,0.00022465,2]
[358594586,1745298634042,-500.0,0.00022465,2]
[358594587,1745298634055,-1405.24,0.00022465,2]
[358594588,1745298634064,-500.0,0.00022465,2]
[358594589,1745298634076,-514.71,0.00022465,2]
[358594590,1745298634086,-500.0,0.00022465,2]
[358594591,1745298634096,-500.0,0.00022465,2]
[358594592,1745298634106,-500.0,0.00022465,2]
[358594593,1745298634116,-500.0,0.00022465,2]
[358594594,1745298634128,-500.0,0.00022465,2]
[358594595,1745298634138,-1109.86,0.00022465,2]
[358594596,1745298634148,-500.0,0.00022465,2]
[358594597,1745298634158,-500.0,0.00022465,2]
[358594598,1745298634237,-500.0,0.00022465,2]
[358594599,1745298634246,-1034.68,0.00022465,2]
[358594600,1745298634256,-500.0,0.00022465,2]
[358594601,1745298634266,-500.0,0.00022465,2]
[358594602,1745298634275,-500.0,0.00022465,2]
[358594603,1745298634286,-500.0,0.00022465,2]
[358594604,1745298634295,-500.0,0.00022465,2]
[358594605,1745298634305,-500.0,0.00022465,2]
[358594606,1745298634315,-500.0,0.00022465,2]
[358594607,1745298634324,-500.0,0.00022465,2]
[358594608,1745298634334,-5232.03,0.00022465,2]
[358594609,1745298634343,-500.0,0.00022465,2]
[358594610,1745298634352,-4153.84,0.00022465,2]
[358594611,1745298634361,-500.0,0.00022465,2]
[358594612,1745298634371,-500.0,0.00022465,2]
[358594613,1745298634380,-500.0,0.00022465,2]
[358594614,1745298634389,-582.09457992,0.00022465,2]
[358594615,1745298634399,-500.0,0.00022465,2]
[358594616,1745298634408,-500.0,0.00022465,2]
[358594617,1745298634417,-500.0,0.00022465,2]
[358594618,1745298634426,-500.0,0.00022465,2]
[358594619,1745298634436,-500.0,0.00022465,2]
[358594620,1745298634445,-500.0,0.00022465,2]
[358594621,1745298634455,-7521.15,0.00022465,2]
[358594622,1745298634464,-184.45811037,0.00022639,2]
[358594623,1745298634474,-500.0,0.00022738,2]
[358594624,1745298634483,-500.0,0.00022738,2]
[358594625,1745298634492,-407.52491228,0.00022738,2]
[358594626,1745298634502,-257.48197683,0.00022738,2]
[358594627,1745298634511,-500.0,0.00022739,2]
[358594628,1745298634522,-896.95,0.00022739,2]
[358594629,1745298634532,-628.93,0.00022739,2]
[358594630,1745298634543,-500.0,0.00022739,2]
[358594631,1745298634553,-500.0,0.00022739,2]
[358594632,1745298634562,-500.0,0.00022739,2]
[358594633,1745298634571,-500.0,0.00022739,2]
[358594634,1745298634581,-500.0,0.00022739,2]
[358594635,1745298634592,-500.22751214,0.00022739,2]
[358594636,1745298634603,-830.76,0.00022739,2]
[358594637,1745298634612,-500.0,0.00022739,2]
[358594638,1745298634622,-500.0,0.00022739,2]
[358594639,1745298634631,-1405.24,0.00022739,2]
[358594640,1745298634640,-500.0,0.00022739,2]
[358594641,1745298634650,-514.71,0.00022739,2]
[358594642,1745298634660,-500.0,0.00022739,2]
[358594643,1745298634669,-500.0,0.00022739,2]
[358594644,1745298634678,-500.0,0.00022739,2]
[358594645,1745298634688,-500.0,0.00022739,2]
[358594646,1745298634698,-500.0,0.00022739,2]
[358594647,1745298634707,-1109.86,0.00022739,2]
[358594648,1745298634716,-500.0,0.00022739,2]
[358594649,1745298634725,-500.0,0.00022739,2]
[358594650,1745298634734,-500.0,0.00022739,2]
[358594651,1745298634744,-1034.68,0.00022739,2]
[358594652,1745298634753,-500.0,0.00022739,2]
[358594653,1745298634762,-500.0,0.00022739,2]
[358594654,1745298634771,-500.0,0.00022739,2]
[358594655,1745298634780,-500.0,0.00022739,2]
[358594656,1745298634790,-500.0,0.00022739,2]
[358594657,1745298634799,-500.0,0.00022739,2]
[358594658,1745298634809,-500.0,0.00022739,2]
[358594659,1745298634818,-500.0,0.00022739,2]
[358594660,1745298634828,-5232.03,0.00022739,2]
[358594661,1745298634838,-500.0,0.00022739,2]
[358594662,1745298634847,-4153.84,0.00022739,2]
[358594663,1745298634857,-500.0,0.00022739,2]
[358594664,1745298634867,-500.0,0.00022739,2]
[358594665,1745298634877,-525.2783185,0.00022739,2]
[358594666,1745298634886,-500.0,0.00022739,2]
[358594667,1745298634896,-500.0,0.00022739,2]
[358594668,1745298634905,-500.0,0.00022739,2]
[358594669,1745298634915,-500.0,0.00022739,2]
[358594670,1745298634924,-500.0,0.00022739,2]
[358594671,1745298634934,-500.0,0.00022739,2]
[358594672,1745298634944,-7521.15,0.00022739,2]
[358594673,1745298634954,-323.23874334,0.00022741,2]
[358594674,1745298634964,-1680.0,0.00022811,2]
[358594675,1745298634974,-323.23874334,0.00022815,2]
[358594676,1745298634983,-196.67,0.00022848,2]
[358594677,1745298634993,-151.0,0.00022851,2]
[358594678,1745298635002,-5798.15,0.00022857,2]
[358594679,1745298635012,-5798.15,0.00022857,2]
[358594680,1745298635021,-5798.15,0.00022857,2]
[358594681,1745298635032,-500.0,0.00022858,2]
[358594682,1745298635043,-500.0,0.00022858,2]
[358594683,1745298635057,-500.00000001,0.00022858,2]
[358594684,1745298635067,-500.0,0.00022858,2]
[358594685,1745298635076,-500.0,0.00022858,2]
[358594686,1745298635086,-500.0,0.00022858,2]
[358594687,1745298635097,-534.37397577,0.00022858,2]
[358594688,1745298635107,-500.0,0.00022858,2]
[358594689,1745298635116,-544.01876076,0.00022858,2]
[358594690,1745298635127,-500.0,0.00022858,2]
[358594691,1745298635139,-500.0,0.00022858,2]
[358594692,1745298635208,-610.04,0.00022858,2]
[358594693,1745298635218,-506.51649067,0.00022858,2]
[358594694,1745298635228,-500.0,0.00022858,2]
[358594695,1745298635238,-502.17823469,0.00022858,2]
[358594696,1745298635247,-500.0,0.00022858,2]
[358594697,1745298635257,-500.0,0.00022858,2]
[358594698,1745298635266,-507.72796452,0.00022858,2]
[358594699,1745298635276,-500.0,0.00022858,2]
[358594700,1745298635285,-500.0,0.00022858,2]
[358594701,1745298635295,-500.0,0.00022858,2]
[358594702,1745298635304,-500.0,0.00022858,2]
[358594703,1745298635313,-500.0,0.00022858,2]
[358594704,1745298635324,-540.68,0.00022858,2]
[358594705,1745298635333,-333.76661461,0.00022858,2]
[358594706,1745298635342,-500.0,0.00022858,2]
[358594707,1745298635352,-500.0,0.00022858,2]
[358594708,1745298635362,-500.0,0.00022858,2]
[358594709,1745298635371,-500.0,0.00022858,2]
[358594710,1745298635380,-500.0,0.00022858,2]
[358594711,1745298635390,-500.0,0.00022858,2]
[358594712,1745298635399,-636.63,0.00022858,2]
[358594713,1745298635409,-483.20792998,0.00022858,2]
[358594714,1745298635418,-500.0,0.00022858,2]
[358594715,1745298635428,-500.0,0.00022858,2]
[358594716,1745298635437,-500.0,0.00022858,2]
[358594717,1745298635446,-500.0,0.00022858,2]
[358594718,1745298635455,-500.0,0.00022858,2]
[358594719,1745298635464,-500.0,0.00022858,2]
[358594720,1745298635474,-293.79950574,0.00022858,2]
[358594721,1745298635483,-365.03101003,0.00022858,2]
[358594722,1745298635492,-501.12392354,0.00022858,2]
[358594723,1745298635502,-500.0,0.00022858,2]
[358594724,1745298635511,-500.0,0.00022858,2]
[358594725,1745298635521,-500.0,0.00022858,2]
[358594726,1745298635530,-500.0,0.00022858,2]
[358594727,1745298635541,-500.0,0.00022858,2]
[358594728,1745298635550,-500.0,0.00022858,2]
[358594729,1745298635560,-520.09277832,0.00022858,2]
[358594730,1745298635569,-500.0,0.00022858,2]
[358594731,1745298635579,-500.0,0.00022858,2]
[358594732,1745298635589,-500.0,0.00022858,2]
[358594733,1745298635599,-500.0,0.00022858,2]
[358594734,1745298635608,-604.45,0.00022858,2]